fUSD/lending_fUSD_20250904
["ID","MTS","AMOUNT","RATE_DAILY","PERIOD"]
[383564771,1756990339352,-402.85,0.00026849,2]
[383564772,1756990339359,-435.81,0.00026849,2]
[383564773,1756990339367,-579.58,0.00026849,2]
[383564774,1756990339377,-996.93,0.00026849,2]
[383564775,1756990339386,-1061.82,0.00026849,2]
[383564776,1756990339395,-400.0,0.00026849,2]
[383564777,1756990339406,-608.48,0.00026849,2]
[383564778,1756990339416,-1216.81,0.00026849,2]
[383564779,1756990339425,-2520.02,0.00026849,2]
[383564780,1756990339434,-1569.91,0.00026849,2]
[383564781,1756990339443,-400.0,0.00026849,2]
[383564782,1756990339452,-1782.09,0.00026849,2]
[383564783,1756990339462,-400.0,0.00026849,2]
[383564784,1756990339471,-1565.66,0.00026849,2]
[383564785,1756990339480,-967.5,0.00026849,2]
[383564786,1756990339489,-1736.13,0.00026849,2]
[383564787,1756990339499,-841.07,0.00026849,2]
[383564788,1756990339508,-361.7083742,0.00026849,2]
[383564789,1756990339517,-941.19,0.00026849,2]
[383564790,1756990339527,-371.51511061,0.00026849,2]
[383564791,1756990339536,-656.44,0.00026849,2]
[383564792,1756990339546,-1999.99,0.00026849,2]
[383564793,1756990339555,-400.0,0.00026849,2]
[383564794,1756990339565,-1565.3,0.00026849,2]
[383564795,1756990339574,-1135.36,0.00026849,2]
[383564796,1756990339584,-455.15,0.00026849,2]
[383564797,1756990339594,-3100.45,0.00026849,2]
[383564798,1756990339604,-708.51,0.00026849,2]
[383564799,1756990339614,-945.65,0.00026849,2]
[383564800,1756990339625,-742.75,0.00026849,2]
[383564801,1756990339634,-459.56,0.00026849,2]
[383564802,1756990339643,-301.33,0.00026849,2]
[383564803,1756990339653,-500.0,0.0002685,2]
[383564804,1756990339662,-400.0,0.00026931,2]
[383564805,1756990339672,-400.0,0.00026931,2]
[383564806,1756990339681,-6679.88,0.00026931,2]
[383564807,1756990339690,-956.54,0.00026931,2]
[383564808,1756990339699,-484.69,0.00026931,2]
[383564809,1756990339709,-471.21,0.00026931,2]
[383564810,1756990339718,-848.28,0.00026931,2]
[383564811,1756990339728,-400.0,0.00026931,2]
[383564812,1756990339737,-876.27,0.00026931,2]
[383564813,1756990339746,-386.30008336,0.00026987,2]
[383564814,1756990339756,-250.0,0.00027,2]
[383564815,1756990339765,-1012.58471402,0.00027,2]
[383564816,1756990339775,-3043.94446361,0.00027,2]
[383564817,1756990339784,-200000.0,0.00027,2]
[383564818,1756990339794,-500.0,0.00027,5]
[383564819,1756990339803,-234.0093104,0.00027,30]
[383564820,1756990339812,-1022.26,0.00027,7]
[383564821,1756990339822,-514.64478986,0.00027,3]
[383564822,1756990339831,-212.59699798,0.00027,3]
[383564823,1756990339840,-206.0,0.0002702,2]
[383564824,1756990339849,-359.08,0.00027023,2]
[383564825,1756990339858,-600.0,0.00027042,2]
[383564826,1756990339867,-320.74051982,0.00027106,2]
[383564827,1756990339876,-10190.33947938,0.00027121,7]
[383564828,1756990339886,-422.37,0.00027123,2]
[383564829,1756990339895,-400.0,0.00027123,2]
[383564830,1756990339904,-507.27380262,0.00027123,2]
[383564831,1756990339914,-492.66,0.00027123,2]
[383564832,1756990339924,-400.0,0.00027123,2]
[383564833,1756990339935,-412.66,0.00027123,2]
[383564834,1756990339945,-761.63,0.00027123,2]
[383564835,1756990339955,-1219.37,0.00027123,2]
[383564836,1756990339966,-353.7851009,0.00027123,2]
[383564837,1756990339976,-661.99,0.00027123,2]
[383564838,1756990339985,-575.08,0.00027123,2]
[383564839,1756990339994,-411.91,0.00027123,2]
[383564840,1756990340004,-400.0,0.00027123,2]
[383564841,1756990340013,-400.0,0.00027123,2]
[383564842,1756990340023,-402.8,0.00027123,2]
[383564843,1756990340032,-400.0,0.00027123,2]
[383564844,1756990340042,-414.4,0.00027123,2]
[383564845,1756990340053,-463.59,0.00027123,2]
[383564846,1756990340063,-423.94,0.00027123,2]
[383564847,1756990340073,-495.23,0.00027123,2]
[383564848,1756990340083,-565.94,0.00027123,2]
[383564849,1756990340093,-265.3621959,0.00027123,2]
[383564850,1756990340103,-320.56428727,0.00027123,2]
[383564851,1756990340112,-466.1,0.00027123,2]
[383564852,1756990340122,-456.03,0.00027123,2]
[383564853,1756990340131,-945.14,0.00027123,2]
[383564854,1756990340141,-400.0,0.00027123,2]
[383564855,1756990340150,-400.0,0.00027123,2]
[383564856,1756990340160,-400.0,0.00027123,2]
[383564857,1756990340170,-953.11,0.00027123,2]
[383564858,1756990340179,-821.03,0.00027123,2]
[383564859,1756990340188,-1693.2,0.00027123,2]
[383564860,1756990340198,-1079.3,0.00027123,2]
[383564861,1756990340207,-400.0,0.00027123,2]
[383564862,1756990340216,-624.18,0.00027123,2]
[383564863,1756990340226,-2782.05,0.00027123,2]
[383564864,1756990340236,-725.37,0.00027123,2]
[383564865,1756990340246,-421.94,0.00027123,2]
[383564866,1756990340255,-685.21,0.00027123,2]
[383564867,1756990340264,-931.71,0.00027123,2]
[383564868,1756990340274,-1587.17,0.00027123,2]
[383564869,1756990340284,-2135.57,0.00027123,2]
[383564870,1756990340293,-1227.09,0.00027123,2]
[383564871,1756990340303,-625.05,0.00027123,2]
[383564872,1756990340312,-474.56,0.00027123,2]
[383564873,1756990340322,-749.93,0.00027123,2]
[383564874,1756990340332,-638.66,0.00027123,2]
[383564875,1756990340342,-508.97,0.00027123,2]
[383564876,1756990340351,-400.0,0.00027123,2]
[383564877,1756990340360,-1070.95,0.00027123,2]
[383564878,1756990340369,-3593.96,0.00027123,2]
[383564879,1756990340379,-3019.97,0.00027123,2]
[383564880,1756990340389,-2175.07,0.00027123,2]
[383564881,1756990340399,-369.61824416,0.00027123,2]
[383564882,1756990340408,-2082.36,0.00027123,2]
[383564883,1756990340417,-970.38,0.00027123,2]
[383564884,1756990340427,-754.51,0.00027123,2]
[383564885,1756990340437,-1127.96,0.00027123,2]
[383564886,1756990340446,-2243.08,0.00027123,2]
[383564887,1756990340456,-1735.62,0.00027123,2]
[383564888,1756990340465,-1045.07,0.00027123,2]
[383564889,1756990340474,-731.72,0.00027123,2]
[383564890,1756990340484,-400.0,0.00027123,2]
[383564891,1756990340493,-998.96,0.00027123,2]
[383564892,1756990340502,-709.73,0.00027123,2]
[383564893,1756990340512,-2831.28,0.00027123,2]
[383564894,1756990340521,-3039.71,0.00027123,2]
[383564895,1756990340531,-898.29,0.00027123,2]
[383564896,1756990340540,-1689.73,0.00027123,2]
[383564897,1756990340550,-454.51,0.00027123,2]
[383564898,1756990340559,-449.75,0.00027123,2]
[383564899,1756990340569,-402.85,0.00027123,2]
[383564900,1756990340579,-435.81,0.00027123,2]
[383564901,1756990340589,-579.58,0.00027123,2]
[383564902,1756990340599,-996.93,0.00027123,2]
[383564903,1756990340610,-1061.82,0.00027123,2]
[383564904,1756990340620,-400.0,0.00027123,2]
[383564905,1756990340630,-608.48,0.00027123,2]
[383564906,1756990340639,-1216.81,0.00027123,2]
[383564907,1756990340649,-2520.02,0.00027123,2]
[383564908,1756990340663,-1569.91,0.00027123,2]
[383564909,1756990340673,-400.0,0.00027123,2]
[383564910,1756990340683,-1782.09,0.00027123,2]
[383564911,1756990340693,-372.98393362,0.00027123,2]
[383564912,1756990340704,-1565.66,0.00027123,2]
[383564913,1756990340713,-967.5,0.00027123,2]
[383564914,1756990340723,-1736.13,0.00027123,2]
[383564915,1756990340733,-841.07,0.00027123,2]
[383564916,1756990340743,-941.19,0.00027123,2]
[383564917,1756990340753,-656.44,0.00027123,2]
[383564918,1756990340763,-1999.99,0.00027123,2]
[383564919,1756990340773,-400.0,0.00027123,2]
[383564920,1756990340783,-1565.3,0.00027123,2]
[383564921,1756990340793,-1135.36,0.00027123,2]
[383564922,1756990340803,-455.15,0.00027123,2]
[383564923,1756990340812,-3100.45,0.00027123,2]
[383564924,1756990340821,-708.51,0.00027123,2]
[383564925,1756990340830,-945.65,0.00027123,2]
[383564926,1756990340838,-742.75,0.00027123,2]
[383564927,1756990340847,-459.56,0.00027123,2]
[383564928,1756990340855,-3606.35,0.00027123,2]
[383564929,1756990340865,-262.99,0.00027123,4]
[383564930,1756990340873,-511.0,0.00027137,2]
[383564931,1756990340882,-150.0,0.00027191,2]
[383564932,1756990340892,-400.0,0.00027205,2]
[383564933,1756990340898,-400.0,0.00027205,2]
[383564934,1756990340905,-6679.88,0.00027205,2]
[383564935,1756990340915,-956.54,0.00027205,2]
[383564936,1756990340923,-484.69,0.00027205,2]
[383564937,1756990340931,-471.21,0.00027205,2]
[383564938,1756990340943,-848.28,0.00027205,2]
[383564939,1756990340952,-400.0,0.00027205,2]
[383564940,1756990340961,-876.27,0.00027205,2]
[383564941,1756990341161,-858.25848656,0.00027208,2]
[383564942,1756990341172,-1000.0,0.00027285,2]
[383564943,1756990341182,-1069.54,0.000273,2]
[383564944,1756990341192,-3382.0,0.0002731,2]
[383564945,1756990341201,-924.0,0.0002731,2]
[383564946,1756990341211,-2035.0,0.0002731,2]
[383564947,1756990341219,-1258.0,0.0002731,2]
[383564948,1756990341229,-1577.0,0.0002731,2]
[383564949,1756990341239,-1300.0,0.0002731,2]
[383564950,1756990341249,-567.0,0.0002731,2]
[383564951,1756990341258,-600.0,0.0002731,2]
[383564952,1756990341268,-811.0,0.0002731,2]
[383564953,1756990341277,-2241.0,0.0002731,2]
[383564954,1756990341287,-4163.0,0.0002731,2]
[383564955,1756990341296,-21149.0,0.0002731,2]
[383564956,1756990341305,-724.0,0.0002731,2]
[383564957,1756990341315,-6163.0,0.0002731,2]
[383564958,1756990341325,-979.0,0.0002732,2]
[383564959,1756990341334,-7949.09069853,0.0002739,2]
[383564960,1756990341344,-3173.49046595,0.0002739,2]
[383564961,1756990341353,-150.0,0.0002739,2]
[383564962,1756990341363,-4024.07859678,0.0002739,2]
[383564963,1756990341372,-422.37,0.00027397,2]
[383564964,1756990341381,-236.25765608,0.00027397,2]
[383564965,1756990341391,-492.66,0.00027397,2]
[383564966,1756990341401,-400.0,0.00027397,2]
[383564967,1756990341411,-412.66,0.00027397,2]
[383564968,1756990341421,-761.63,0.00027397,2]
[383564969,1756990341431,-1219.37,0.00027397,2]
[383564970,1756990341441,-661.99,0.00027397,2]
[383564971,1756990341452,-575.08,0.00027397,2]
[383564972,1756990341462,-411.91,0.00027397,2]
[383564973,1756990341472,-512.19392936,0.00027397,10]
[383564974,1756990341483,-329.92097025,0.00027397,2]
[383564975,1756990341492,-262.29417253,0.00027397,2]
[383564976,1756990341502,-402.8,0.00027397,2]
[383564977,1756990341512,-400.0,0.00027397,2]
[383564978,1756990341522,-414.4,0.00027397,2]
[383564979,1756990341532,-557.49,0.00027397,2]
[383564980,1756990341542,-557.49,0.00027397,2]
[383564981,1756990341552,-557.49,0.00027397,2]
[383564982,1756990341561,-557.49,0.00027397,2]
[383564983,1756990341570,-557.49,0.00027397,2]
[383564984,1756990341579,-557.49,0.00027397,2]
[383564985,1756990341589,-557.49,0.00027397,2]
[383564986,1756990341599,-557.49,0.00027397,2]
[383564987,1756990341608,-557.49,0.00027397,2]
[383564988,1756990341618,-557.49,0.00027397,2]
[383564989,1756990341627,-557.49,0.00027397,2]
[383564990,1756990341638,-557.49,0.00027397,2]
[383564991,1756990341647,-557.49,0.00027397,2]
[383564992,1756990341657,-557.49,0.00027397,2]
[383564993,1756990341667,-557.49,0.00027397,2]
[383564994,1756990341676,-557.49,0.00027397,2]
[383564995,1756990341686,-557.49,0.00027397,2]
[383564996,1756990341695,-557.49,0.00027397,2]
[383564997,1756990341705,-557.49,0.00027397,2]
[383564998,1756990341715,-557.49,0.00027397,2]
[383564999,1756990341725,-557.49,0.00027397,2]
[383565000,1756990341735,-463.59,0.00027397,2]
[383565001,1756990341745,-500.0,0.00027397,2]
[383565002,1756990341755,-500.0,0.00027397,2]
[383565003,1756990341764,-423.94,0.00027397,2]
[383565004,1756990341774,-500.0,0.00027397,2]
[383565005,1756990341783,-500.0,0.00027397,2]
[383565006,1756990341793,-500.0,0.00027397,2]
[383565007,1756990341802,-500.0,0.00027397,2]
[383565008,1756990341812,-500.0,0.00027397,2]
[383565009,1756990341821,-500.0,0.00027397,2]
[383565010,1756990341831,-500.0,0.00027397,2]
[383565011,1756990341841,-500.0,0.00027397,2]
[383565012,1756990341850,-500.0,0.00027397,2]
[383565013,1756990341860,-500.0,0.00027397,2]
[383565014,1756990341870,-500.0,0.00027397,2]
[383565015,1756990341879,-500.0,0.00027397,2]
[383565016,1756990341889,-500.0,0.00027397,2]
[383565017,1756990341898,-500.0,0.00027397,2]
[383565018,1756990341908,-500.0,0.00027397,2]
[383565019,1756990341919,-474.26454634,0.00027397,2]
[383565020,1756990341929,-495.23,0.00027397,2]
[383565021,1756990341943,-565.94,0.00027397,2]
[383565022,1756990341952,-466.1,0.00027397,2]
[383565023,1756990341962,-456.03,0.00027397,2]
[383565024,1756990341973,-945.14,0.00027397,2]
[383565025,1756990341983,-408.52529193,0.00027397,2]
[383565026,1756990341994,-500.0,0.00027397,2]
[383565027,1756990342004,-218.96236416,0.00027397,2]
[383565028,1756990342014,-538.69311414,0.00027397,2]
[383565029,1756990342023,-953.11,0.00027397,2]
[383565030,1756990342033,-821.03,0.00027397,2]
[383565031,1756990342045,-1693.2,0.00027397,2]
[383565032,1756990342054,-1079.3,0.00027397,2]
[383565033,1756990342063,-156.0964996,0.00027397,2]
[383565034,1756990342072,-624.18,0.00027397,2]
[383565035,1756990342082,-2782.05,0.00027397,2]
[383565036,1756990342091,-725.37,0.00027397,2]
[383565037,1756990342101,-421.94,0.00027397,2]
[383565038,1756990342110,-685.21,0.00027397,2]
[383565039,1756990342120,-931.71,0.00027397,2]
[383565040,1756990342129,-1587.17,0.00027397,2]
[383565041,1756990342138,-2135.57,0.00027397,2]
[383565042,1756990342148,-1227.09,0.00027397,2]
[383565043,1756990342158,-625.05,0.00027397,2]
[383565044,1756990342167,-474.56,0.00027397,2]
[383565045,1756990342177,-749.93,0.00027397,2]
[383565046,1756990342187,-638.66,0.00027397,2]
[383565047,1756990342197,-508.97,0.00027397,2]
[383565048,1756990342209,-297.24116507,0.00027397,2]
[383565049,1756990342218,-1070.95,0.00027397,2]
[383565050,1756990342229,-3593.96,0.00027397,2]
[383565051,1756990342239,-3019.97,0.00027397,2]
[383565052,1756990342248,-2175.07,0.00027397,2]
[383565053,1756990342257,-2000.0,0.00027397,30]
[383565054,1756990342267,-2000.0,0.00027397,30]
[383565055,1756990342277,-2060.42240805,0.00027397,30]
[383565056,1756990342286,-2082.36,0.00027397,2]
[383565057,1756990342295,-970.38,0.00027397,2]
[383565058,1756990342304,-754.51,0.00027397,2]
[383565059,1756990342314,-1127.96,0.00027397,2]
[383565060,1756990342323,-2243.08,0.00027397,2]
[383565061,1756990342333,-1735.62,0.00027397,2]
[383565062,1756990342343,-1045.07,0.00027397,2]
[383565063,1756990342352,-731.72,0.00027397,2]
[383565064,1756990342361,-299.73793923,0.00027397,2]
[383565065,1756990342375,-998.96,0.00027397,2]
[383565066,1756990342384,-709.73,0.00027397,2]
[383565067,1756990342395,-2831.28,0.00027397,2]
[383565068,1756990342405,-3039.71,0.00027397,2]
[383565069,1756990342416,-898.29,0.00027397,2]
[383565070,1756990342426,-1689.73,0.00027397,2]
[383565071,1756990342436,-454.51,0.00027397,2]
[383565072,1756990342446,-449.75,0.00027397,2]
[383565073,1756990342455,-402.85,0.00027397,2]
[383565074,1756990342463,-435.81,0.00027397,2]
[383565075,1756990342472,-579.58,0.00027397,2]
[383565076,1756990342480,-996.93,0.00027397,2]
[383565077,1756990342488,-1061.82,0.00027397,2]
[383565078,1756990342498,-400.0,0.00027397,2]
[383565079,1756990342506,-608.48,0.00027397,2]
[383565080,1756990342514,-1216.81,0.00027397,2]
[383565081,1756990342523,-2520.02,0.00027397,2]
[383565082,1756990342532,-150.0,0.00027397,2]
[383565083,1756990342541,-1569.91,0.00027397,2]
[383565084,1756990342550,-400.0,0.00027397,2]
[383565085,1756990342559,-1782.09,0.00027397,2]
[383565086,1756990342569,-1565.66,0.00027397,2]
[383565087,1756990342578,-967.5,0.00027397,2]
[383565088,1756990342588,-1736.13,0.00027397,2]
[383565089,1756990342597,-841.07,0.00027397,2]
[383565090,1756990342607,-941.19,0.00027397,2]
[383565091,1756990342616,-656.44,0.00027397,2]
[383565092,1756990342625,-1999.99,0.00027397,2]
[383565093,1756990342635,-400.0,0.00027397,2]
[383565094,1756990342644,-1565.3,0.00027397,2]
[383565095,1756990342654,-1135.36,0.00027397,2]
[383565096,1756990342665,-455.15,0.00027397,2]
[383565097,1756990342675,-3100.45,0.00027397,2]
[383565098,1756990342684,-708.51,0.00027397,2]
[383565099,1756990342694,-945.65,0.00027397,2]
[383565100,1756990342703,-500.0,0.00027397,2]
[383565101,1756990342713,-500.0,0.00027397,2]
[383565102,1756990342722,-500.0,0.00027397,2]
[383565103,1756990342732,-500.0,0.00027397,2]
[383565104,1756990342741,-500.0,0.00027397,2]
[383565105,1756990342752,-413.66477674,0.00027397,2]
[383565106,1756990342762,-742.75,0.00027397,2]
[383565107,1756990342778,-459.56,0.00027397,2]
[383565108,1756990342788,-936.53,0.00027397,2]
[383565109,1756990342798,-507.9,0.00027397,2]
[383565110,1756990342808,-1145.76763,0.00027397,7]
[383565111,1756990342819,-1145.76763,0.00027397,7]
[383565112,1756990342828,-1145.76763,0.00027397,7]
[383565113,1756990342838,-1145.76763,0.00027397,7]
[383565114,1756990342847,-1145.76763,0.00027397,7]
[383565115,1756990342858,-1145.76763,0.00027397,7]
[383565116,1756990342868,-1145.76763,0.00027397,7]
[383565117,1756990342877,-1145.76763,0.00027397,7]
[383565118,1756990342887,-1145.76763,0.00027397,7]
[383565119,1756990342896,-1145.76763,0.00027397,7]
[383565120,1756990342906,-1145.76763,0.00027397,7]
[383565121,1756990342916,-1145.76763,0.00027397,7]
[383565122,1756990342926,-1145.76763,0.00027397,7]
[383565123,1756990342940,-1145.76763,0.00027397,7]
[383565124,1756990342949,-1145.76763,0.00027397,7]
[383565125,1756990342959,-1145.76763,0.00027397,7]
[383565126,1756990342969,-1145.76763,0.00027397,7]
[383565127,1756990342979,-1145.76763,0.00027397,7]
[383565128,1756990342989,-1145.76763,0.00027397,7]
[383565129,1756990342999,-1145.767622,0.00027397,7]
[383565130,1756990343009,-300.0,0.00027397,2]
[383565131,1756990343019,-700.0,0.00027397,2]
[383565132,1756990343028,-237.034247,0.00027397,7]
[383565133,1756990343038,-237.034247,0.00027397,7]
[383565134,1756990343047,-237.034247,0.00027397,7]
[383565135,1756990343057,-237.034247,0.00027397,7]
[383565136,1756990343067,-237.034247,0.00027397,7]
[383565137,1756990343077,-237.034247,0.00027397,7]
[383565138,1756990343086,-237.034247,0.00027397,7]
[383565139,1756990343097,-237.034247,0.00027397,7]
[383565140,1756990343107,-237.034247,0.00027397,7]
[383565141,1756990343117,-237.034247,0.00027397,7]
[383565142,1756990343126,-237.034247,0.00027397,7]
[383565143,1756990343135,-237.034247,0.00027397,7]
[383565144,1756990343145,-237.034247,0.00027397,7]
[383565145,1756990343155,-237.034247,0.00027397,7]
[383565146,1756990343165,-237.034247,0.00027397,7]
[383565147,1756990343174,-237.034247,0.00027397,7]
[383565148,1756990343184,-237.034247,0.00027397,7]
[383565149,1756990343194,-237.034247,0.00027397,7]
[383565150,1756990343203,-237.034247,0.00027397,7]
[383565151,1756990343213,-237.034239,0.00027397,7]
[383565152,1756990343223,-20667.7,0.00027397,2]
[383565153,1756990343233,-196.99,0.00027397,80]
[383565154,1756990343243,-151.0,0.00027397,7]
[383565155,1756990343252,-151.0,0.00027397,7]
[383565156,1756990343262,-151.0,0.00027397,7]
[383565157,1756990343272,-151.0,0.00027397,7]
[383565158,1756990343280,-292.181456,0.00027397,7]
[383565159,1756990343290,-155.30887919,0.00027397,5]
[383565160,1756990343300,-156.21969381,0.00027397,5]
[383565161,1756990343310,-150.0,0.00027397,5]
[383565162,1756990343319,-171.54142031,0.00027409,2]
[383565163,1756990343328,-189.34,0.00027425,30]
[383565164,1756990343338,-400.0,0.00027479,2]
[383565165,1756990343348,-156.98173606,0.00027479,2]
[383565166,1756990343357,-6679.88,0.00027479,2]
[383565167,1756990343367,-956.54,0.00027479,2]
[383565168,1756990343377,-484.69,0.00027479,2]
[383565169,1756990343386,-471.21,0.00027479,2]
[383565170,1756990343394,-848.28,0.00027479,2]
[383565171,1756990343403,-400.0,0.00027479,2]
[383565172,1756990343412,-876.27,0.00027479,2]
[383565173,1756990343420,-537.80140295,0.000275,2]
[383565174,1756990343429,-196.8954294,0.000275,2]
[383565175,1756990343438,-1094.93809557,0.000275,2]
[383565176,1756990343451,-500.0,0.00027534,2]
[383565177,1756990343460,-156.1,0.00027549,2]
[383565178,1756990343469,-600.0,0.0002759,2]
[383565179,1756990343478,-500.0,0.00027671,2]
[383565180,1756990343486,-422.37,0.00027671,2]
[383565181,1756990343496,-492.66,0.00027671,2]
[383565182,1756990343505,-538.47834023,0.00027671,2]
[383565183,1756990343514,-412.66,0.00027671,2]
[383565184,1756990343524,-761.63,0.00027671,2]
[383565185,1756990343534,-1219.37,0.00027671,2]
[383565186,1756990343545,-661.99,0.00027671,2]
[383565187,1756990343555,-575.08,0.00027671,2]
[383565188,1756990343564,-411.91,0.00027671,2]
[383565189,1756990343574,-402.8,0.00027671,2]
[383565190,1756990343583,-400.0,0.00027671,2]
[383565191,1756990343594,-414.4,0.00027671,2]
[383565192,1756990343604,-557.49,0.00027671,2]
[383565193,1756990343615,-463.59,0.00027671,2]
[383565194,1756990343625,-423.94,0.00027671,2]
[383565195,1756990343634,-495.23,0.00027671,2]
[383565196,1756990343644,-565.94,0.00027671,2]
[383565197,1756990343654,-466.1,0.00027671,2]
[383565198,1756990343665,-456.03,0.00027671,2]
[383565199,1756990343675,-945.14,0.00027671,2]
[383565200,1756990343684,-953.11,0.00027671,2]
[383565201,1756990343693,-821.03,0.00027671,2]
[383565202,1756990343702,-1693.2,0.00027671,2]
[383565203,1756990343710,-1079.3,0.00027671,2]
[383565204,1756990343719,-624.18,0.00027671,2]
[383565205,1756990343728,-2782.05,0.00027671,2]
[383565206,1756990343738,-725.37,0.00027671,2]
[383565207,1756990343747,-421.94,0.00027671,2]
[383565208,1756990343756,-685.21,0.00027671,2]
[383565209,1756990343766,-931.71,0.00027671,2]
[383565210,1756990343775,-1587.17,0.00027671,2]
[383565211,1756990343784,-2135.57,0.00027671,2]
[383565212,1756990343793,-1227.09,0.00027671,2]
[383565213,1756990343803,-625.05,0.00027671,2]
[383565214,1756990343812,-474.56,0.00027671,2]
[383565215,1756990343821,-749.93,0.00027671,2]
[383565216,1756990343831,-638.66,0.00027671,2]
[383565217,1756990343841,-508.97,0.00027671,2]
[383565218,1756990343850,-1070.95,0.00027671,2]
[383565219,1756990343859,-3593.96,0.00027671,2]
[383565220,1756990343868,-2175.07,0.00027671,2]
[383565221,1756990343878,-3019.97,0.00027671,2]
[383565222,1756990343887,-2082.36,0.00027671,2]
[383565223,1756990343896,-970.38,0.00027671,2]
[383565224,1756990343905,-754.51,0.00027671,2]
[383565225,1756990343914,-1127.96,0.00027671,2]
[383565226,1756990343923,-2243.08,0.00027671,2]
[383565227,1756990343933,-1735.62,0.00027671,2]
[383565228,1756990343947,-1045.07,0.00027671,2]
[383565229,1756990343956,-731.72,0.00027671,2]
[383565230,1756990343965,-998.96,0.00027671,2]
[383565231,1756990343975,-709.73,0.00027671,2]
[383565232,1756990343984,-2831.28,0.00027671,2]
[383565233,1756990343992,-3039.71,0.00027671,2]
[383565234,1756990344000,-898.29,0.00027671,2]
[383565235,1756990344008,-1689.73,0.00027671,2]
[383565236,1756990344017,-454.51,0.00027671,2]
[383565237,1756990344026,-449.75,0.00027671,2]
[383565238,1756990344035,-402.85,0.00027671,2]
[383565239,1756990344045,-435.81,0.00027671,2]
[383565240,1756990344054,-579.58,0.00027671,2]
[383565241,1756990344064,-996.93,0.00027671,2]
[383565242,1756990344072,-1061.82,0.00027671,2]
[383565243,1756990344080,-454.17334839,0.00027671,2]
[383565244,1756990344088,-608.48,0.00027671,2]
[383565245,1756990344096,-1216.81,0.00027671,2]
[383565246,1756990344105,-2520.02,0.00027671,2]
[383565247,1756990344287,-1569.91,0.00027671,2]
[383565248,1756990344298,-206.06313579,0.00027671,2]
[383565249,1756990344308,-1782.09,0.00027671,2]
[383565250,1756990344318,-1565.66,0.00027671,2]
[383565251,1756990344327,-967.5,0.00027671,2]
[383565252,1756990344337,-1736.13,0.00027671,2]
[383565253,1756990344347,-841.07,0.00027671,2]
[383565254,1756990344357,-941.19,0.00027671,2]
[383565255,1756990344367,-656.44,0.00027671,2]
[383565256,1756990344376,-1999.99,0.00027671,2]
[383565257,1756990344386,-230.45370871,0.00027671,2]
[383565258,1756990344396,-1565.3,0.00027671,2]
[383565259,1756990344406,-1135.36,0.00027671,2]
[383565260,1756990344417,-455.15,0.00027671,2]
[383565261,1756990344427,-3100.45,0.00027671,2]
[383565262,1756990344437,-708.51,0.00027671,2]
[383565263,1756990344447,-945.65,0.00027671,2]
[383565264,1756990344456,-742.75,0.00027671,2]
[383565265,1756990344466,-459.56,0.00027671,2]
[383565266,1756990344475,-151.0,0.00027682,2]
[383565267,1756990344485,-1841.8394371,0.000277,2]
[383565268,1756990344494,-400.0,0.00027753,2]
[383565269,1756990344502,-6679.88,0.00027753,2]
[383565270,1756990344512,-956.54,0.00027753,2]